Cogmind - Beta 16 @@@ ROGUE MODE // 2025.11.11 @ 18:54:28 Player: BVrutally Odd Result: Destroyed by BT-2ZC(R) with Subdweller Laser Performance ------------- Evolutions (0) 0 Regions Visited (2) 400 Robots Destroyed (20) 100 Value Destroyed (476) 476 Prototype IDs (0) 0 Alien Tech Used (0) 0 Bonus (0) 0 TOTAL SCORE: 976 Bonus ------- None Cogmind --------- Core Integrity 0/250 Matter 260/300 Energy 42/100 System Corruption 0% Temperature Cool (6) Movement Treading (160) Location -10/Subcaves Parts ------- > --- POWER (1) -------- (None) > --- PROPULSION (2) --- Light Treads > --- UTILITY (2) ------ Small Storage Unit > --- WEAPON (2) ------- Slug Cannon > --- INVENTORY (8) ---- Light Armor Plating Light Armor Plating Light Armor Plating Light Armor Plating Particle Gun Grenade Launcher Peak State ------------ > --- POWER ------------ Light Ion Engine > --- PROPULSION ------- Light Treads Light Treads > --- UTILITY ---------- Small Storage Unit Light Armor Plating > --- WEAPON ----------- Subdweller Laser Subdweller Laser > --- INVENTORY -------- Light Armor Plating Light Armor Plating Light Armor Plating Light Armor Plating Particle Gun Slug Cannon Grenade Launcher [Rating: 10] Favorites ----------- Power Light Ion Engine Engine Light Ion Engine Propulsion Light Treads Treads Light Treads Utility Small Storage Unit Device Seismic Detector Storage Small Storage Unit Protection Light Armor Plating Weapon Small Laser Energy Gun Small Laser Energy Cannon Beam Cannon Ballistic Gun Assault Rifle Ballistic Cannon Slug Cannon Launcher Grenade Launcher Build | -11 -10 -10 ------- Run | Yrd Mat Sub Slots Evolved . | . . . Power . | . . . Propulsion . | . . . Utility . | . . . Weapon . | . . . Parts Attached 17 | 8 6 3 Power 2 | 1 1 . Engine 2 | 1 1 . Core . | . . . Reactor . | . . . Propulsion 3 | 2 1 . Treads 3 | 2 1 . Leg . | . . . Wheel . | . . . Hover . | . . . Flight . | . . . Utility 4 | 3 1 . Device 2 | 2 . . Storage 1 | 1 . . Processor . | . . . Hackware . | . . . Protection 1 | . 1 . Artifact . | . . . Weapon 8 | 2 3 3 Energy Gun 4 | 1 1 2 Energy Cannon 1 | . 1 . Ballistic Gun 1 | 1 . . Ballistic Cannon 1 | . . 1 Launcher 1 | . 1 . Special Weapon . | . . . Impact Weapon . | . . . Slashing Weapon . | . . . Piercing Weapon . | . . . Special Melee Weapon . | . . . Unidentified Prototypes . | . . . Parts Lost 9 | . 5 4 Power 2 | . 1 1 Propulsion 2 | . 1 1 Utility 2 | . 1 1 Weapon 3 | . 2 1 Highest Loss Streak 4 | . 3 4 To Critical Strikes . | . . . Average Backups 3 | . 2 5 Power . | . . . Propulsion . | . . . Utility 1 | . . 4 Weapon 1 | . 1 1 Tool/Special . | . . . Unused Backups 4 | . . 4 Power . | . . . Propulsion . | . . . Utility 4 | . . 4 Weapon . | . . . Tool/Special . | . . . Average Slot Usage (%) 95 | . 95 96 Engine 13 | . 13 12 Treads 26 | . 26 27 Device 6 | . 9 . Storage 14 | . 14 14 Protection 6 | . 2 13 Energy Gun 14 | . 13 16 Energy Cannon 6 | . 4 10 Ballistic Gun 6 | . 9 . Peak Build Rating 10 | 7 8 10 Average Rating 7 | 5 6 8 On Entrance 5 | . 7 8 Avg Prop Armor Cover (%) . | . . . Naked Turns . | . . . Heaviest Build 19 | 12 17 19 Greatest Support 40 | 40 40 40 Greatest Overweight (x) . | . . . Average Overweight (x) . | . . . Largest Inventory Capacity 8 | 8 8 8 Average Capacity 7 | 7 8 8 Most Carried 7 | . 6 7 Average Carried 3 | . 2 5 Final Capacity 8 | 8 8 8 Final Carried 6 | . 5 6 Class Distribution -------------------- 100% | Mutant Dominant Class ---------------- Mutant | -10/Materials Mutant | -10/Subcaves Resources | -11 -10 -10 ----------- Run | Yrd Mat Sub Matter Collected 492 | 322 160 10 Remotely 87 | 87 . . Salvage Created 574 | 114 430 30 Parts 44 | 14 28 2 Haulers Intercepted . | . . . Recyclers Shooed 1 | . 1 . Parts Field Recycled . | . . . Retrieved Matter . | . . . Parts Self-Destructed 10 | . . 10 Prevented . | . . . Parts Restored . | . . . Kills | -11 -10 -10 ------- Run | Yrd Mat Sub Combat Hostiles Destroyed 13 | . 12 1 Guns 8 | . 7 1 Cannons 3 | . 3 . AOE 2 | . 2 . Classes Destroyed 7 | 2 4 1 Worker 1 | . 1 . Tunneler 4 | 4 . . Recycler 1 | 1 . . Watcher 1 | . 1 . Swarmer 3 | . 3 . Grunt 9 | . 9 . Subdweller 1 | . . 1 Best Kill Streak 5 | 5 4 1 Combat Bots Only 3 | . 3 1 Max Kills in Single Turn 1 | 1 1 1 Gunslinging . | . . . Exploded 1 | . 1 . Melee . | . . . Uniques/NPCs Destroyed . | . . . Combat | -11 -10 -10 -------- Run | Yrd Mat Sub Hostile Shots Fired 120 | . 96 24 Missed 25 | . 20 5 Hits 95 | . 76 19 Projectile 95 | . 76 19 Critical Strikes 1 | . . 1 Damage Taken 1239 | . 851 388 Core 251 | . 185 66 Absorbed by Shields . | . . . Core Remaining (%) 100 | 100 . . Volleys Fired 84 | 14 55 15 Largest 2 | 2 2 2 Hottest 125 | 60 125 120 Shots Fired 143 | 25 96 22 Gun 118 | 25 76 17 Cannon 22 | . 17 5 Launcher 3 | . 3 . Special . | . . . Kinetic 54 | 14 35 5 Thermal 86 | 11 58 17 Explosive 3 | . 3 . Electromagnetic . | . . . Robot Hit Streak 18 | 5 6 18 Robot Miss Streak 3 | 1 3 1 Penetration Max . | . . . Secondary Targets 1 | . 1 . Max Gunslinging Chain 1 | . 1 . Shots Hit Robots 93 | 16 57 20 Core Hits 35 | 6 26 3 Critical Kills . | . . . Critical Parts Destroyed . | . . . Critical Strikes 1 | . . 1 Destroy 1 | . . 1 Melee Attacks . | . . . Impact . | . . . Slashing . | . . . Piercing . | . . . Sneak Attacks . | . . . Combat Hostiles . | . . . Follow-up Attacks . | . . . Damage Inflicted 1512 | 187 895 430 Guns 1016 | 187 527 302 Cannons 303 | . 175 128 Explosions 193 | . 193 . Melee . | . . . Ramming . | . . . Kinetic 495 | 122 245 128 Thermal 824 | 65 457 302 Explosive 193 | . 193 . Electromagnetic . | . . . Impact . | . . . Slashing . | . . . Piercing . | . . . Highest Corruption . | . . . Average Corruption . | . . . Corruption Purged . | . . . Corruption Blocked . | . . . Overload Shots . | . . . Overflow Damage . | . . . Projectiles . | . . . Explosions . | . . . Melee . | . . . Knockbacks 1 | . . 1 Impact . | . . . Kinetic 1 | . . 1 Secondary . | . . . Self-Inflicted Damage . | . . . Shots . | . . . Rammed . | . . . Targets Rammed . | . . . Kicked . | . . . Crushed . | . . . Highest Temperature 405 | . 405 33 Average Temperature 146 | . 166 23 Received Heat Transfer 420 | . 330 90 Effects 2 | . 2 . Energy Bleed 2 | . 2 . Siege Activations . | . . . Martial Activations . | . . . Shielding Activations . | . . . Robots Disrupted . | . . . Combat Hostiles . | . . . Robots Corrupted . | . . . Combat Hostiles . | . . . Parts Fried . | . . . Impact Corruptions . | . . . Robots Melted . | . . . Combat Hostiles . | . . . Parts Melted 1 | . 1 . Heat Transferred 1544 | 150 1019 375 Parts Sabotaged . | . . . Parts Stolen . | . . . Parts Stripped . | . . . Power Chain Reactions . | . . . Alert | -11 -10 -10 ------- Run | Yrd Mat Sub Maximum Alert Level . | . . . Low Security (%) 100 | 100 100 . Level 1 . | . . . Level 2 . | . . . Level 3 . | . . . Level 4 . | . . . Level 5 . | . . . High Security . | . . . Max Security . | . . . Peak Influence 106 | 15 106 . Initial . | . . . Average 27 | 2 31 . Influence Increases 353 | 25 328 . Destroy 0b10 Robot/C 240 | . 240 . Destroy 0b10 Robot/NC 35 | 25 10 . Destroy Leader 52 | . 52 . Disable Machine 15 | . 15 . Destroy Structure 11 | . 11 . Influence Decreases 353 | 25 272 56 Entered New Map 28 | . . 28 Time Decay 248 | 25 195 28 Lost Part 32 | . 32 . Purge Threat 45 | . 45 . Squads Dispatched 1 | . 1 . Investigation . | . . . Extermination . | . . . Reinforcement 1 | . 1 . Assault . | . . . Garrison . | . . . Intercept . | . . . Searches Triggered . | . . . Construction Impeded . | . . . Haulers Reinforced . | . . . Active Scanning Responses . | . . . Cargo Convoy Interrupts . | . . . Stealth | -11 -10 -10 --------- Run | Yrd Mat Sub Distress Signals 1 | . 1 . Communications Jammed . | . . . Distress Signals . | . . . Times Spotted 27 | . 25 2 Peak Tracking Total 3 | . 3 2 Tactical Retreats . | . . . Traps | -11 -10 -10 ------- Run | Yrd Mat Sub Traps Triggered . | . . . Indirectly . | . . . Trap Hack Attempts . | . . . Triggered . | . . . Disarmed . | . . . Reprogrammed . | . . . Reused . | . . . Traps Extracted . | . . . Installed . | . . . Triggered . | . . . Machines | -11 -10 -10 ---------- Run | Yrd Mat Sub Machines Disabled 1 | . 1 . Max in Single Turn 1 | . 1 . Machines Repaired . | . . . Machines Dismantled . | . . . Machines Sabotaged . | . . . Overloaded Fab Kills . | . . . Hacking | -11 -10 -10 --------- Run | Yrd Mat Sub Machines Accessed 2 | . 1 1 Terminals 1 | . 1 . Fabricators . | . . . Repair Stations . | . . . Recycling Units . | . . . Scanalyzers . | . . . Garrison Access . | . . . Total Hacks 4 | . 1 3 Successful 4 | . 1 3 Failed . | . . . Catastrophic . | . . . Database Lockouts . | . . . Manual . | . . . Terminals 1 | . 1 . Fabricators . | . . . Repair Stations . | . . . Recycling Units . | . . . Scanalyzers . | . . . Garrison Access . | . . . Terminal Hacks 4 | . 1 3 Record 3 | . . 3 Unreport Threat 1 | . 1 . Fabricator Hacks . | . . . Repair Station Hacks . | . . . Recycling Unit Hacks . | . . . Scanalyzer . | . . . Garrison Access Hacks . | . . . Unauthorized Hacks . | . . . Terminals . | . . . Fabricators . | . . . Repair Stations . | . . . Recycling Units . | . . . Scanalyzers . | . . . Garrison Access . | . . . Data Cores Recovered . | . . . Used . | . . . Hacking Detections . | . . . Full Trace Events . | . . . Feedback Events . | . . . Feedback Blocked . | . . . Robot Schematics Acquired . | . . . Robots Built . | . . . Authchips . | . . . Time . | . . . Total Robot Build Rating . | . . . Part Schematics Acquired . | . . . Parts Built . | . . . Authchips . | . . . Time . | . . . Total Part Build Rating . | . . . Part Studies Acquired . | . . . Parts Repaired . | . . . Time . | . . . Parts Recycled . | . . . Recycled Matter . | . . . Retrieved Matter . | . . . Retrieved Components . | . . . Parts Scanalyzed . | . . . Part Schematics Acquired . | . . . Parts Damaged . | . . . Bothacking | -11 -10 -10 ------------ Run | Yrd Mat Sub Used RIF Installer . | . . . Robots Hacked . | . . . Non-combat . | . . . Combat . | . . . Robot Hacks Applied . | . . . Relay Couplers Released . | . . . Fabnet Peak Effective % . | . . . Robots Rewired . | . . . Allies Hacked . | . . . Hacks Repelled . | . . . Allies | -11 -10 -10 -------- Run | Yrd Mat Sub Total Allies . | . . . Largest Group . | . . . Highest-Rated Group . | . . . Highest-Rated Ally . | . . . Total Orders . | . . . Ally Attacks . | . . . Total Damage . | . . . Kills . | . . . Allies Corrupted . | . . . Allies Melted . | . . . Intel | -11 -10 -10 ------- Run | Yrd Mat Sub Active Infowar (turns) 599 | 21 578 . Seismic 599 | 21 578 . Robot Analysis Total . | . . . Derelict Logs Recovered . | . . . Drone Launches . | . . . Drone Recoveries . | . . . Exploration | -11 -10 -10 ------------- Run | Yrd Mat Sub Turns Passed 1402 | 126 840 436 Spaces Moved 545 | 49 257 239 Core 3 | 3 . . Treads 542 | 46 257 239 Legs . | . . . Wheels . | . . . Hover . | . . . Flight . | . . . Fastest Speed 50 | 50 160 160 Average Speed 159 | 153 160 160 Slowest Speed 160 | 160 160 160 Overloaded Moves . | . . . Propulsion Burnouts . | . . . Robots Hopped . | . . . Potential Cave-ins . | . . . Cave-ins Triggered . | . . . Exploration Rate (%) 25 | 3 47 27 Regions Visited 2 Branch Regions 1 Pre-discovered Areas . | . . . Known Exits Taken . | . . . Unknown Exits Taken 2 | 1 1 . Scrap Searched . | . . . Spaces Dug . | . . . Terrain Destroyed 16 | . 16 . Melee . | . . . Projectile . | . . . AOE 16 | . 16 . Terrain Rammed . | . . . Walls Destroyed . | . . . Machines Disabled . | . . . Actions | -11 -10 -10 --------- Run | Yrd Mat Sub Total 929 | 71 588 270 Wait 274 | . 263 11 Move 543 | 48 256 239 Hop . | . . . Pick Up 9 | . 8 1 Fast Attach 10 | 8 2 . Attach 4 | . 3 1 Detach . | . . . Swap 3 | . 1 2 Drop 2 | 1 . 1 Fire 84 | 14 55 15 Melee . | . . . Ram . | . . . Kick . | . . . Crush . | . . . Escape Stasis . | . . . Rewire . | . . . Trap . | . . . Miscellaneous . | . . . Route ------- -11/Scrapyard -10/Materials (discovered 4 exits: [*Mat x2] / [*Min] / *Sub) -10/Subcaves History --------- Turn | Location | Event 2 | -11/Scrapyard | Met Revision 17 41 | -11/Scrapyard | Discovered new exit (range 15) 127 | -11/Scrapyard | Entered Materials 286 | -10/Materials | Discovered new exit (range 9) 304 | -10/Materials | Build established: Mutant 399 | -10/Materials | Discovered new exit (range 13) 681 | -10/Materials | Discovered new exit (range 13) 717 | -10/Materials | Core integrity fell below 50% 740 | -10/Materials | Lost 3 parts (1u2w) 891 | -10/Materials | Discovered new exit (range 9) 967 | -10/Materials | Entered Subcaves 1137 | -10/Subcaves | Visited Clippyterm 1142 | -10/Subcaves | Learned Factory stockpile data 1261 | -10/Subcaves | Shifting Twisted Machinery released Slug Cannon 1268 | -10/Subcaves | Shifting Twisted Machinery released Sub. Laser 1288 | -10/Subcaves | Shifting Twisted Machinery released Sub. Laser 1380 | -10/Subcaves | Core integrity fell below 20% 1403 | -10/Subcaves | Destroyed by BT-2ZC(R) with Subdweller Laser Last Messages --------------- whole. Slug Cannon falls loose from the Twisted Machinery. Sub. Laser falls loose from the Twisted Machinery. 01268_ Acquired Slug Cannon. Sub. Laser falls loose from the Twisted Machinery. 01301_ Acquired Sub. Laser. 01310_ Subatomizers dissect the Beam Cannon. 01365_ Lgt. Ion Engine destroyed. 01365_ S1-K9D(R) destroyed. 01371_ Lgt. Treads destroyed. 01374_ BT-2ZC(R) suffers critical hit (Destroy). 01375_ Lgt. Armor Plating destroyed. 01378_ BT-2ZC(R) affixes Scrap Shield Fragment to Scrap Shield. 01389_ Dropped Sub. Laser. 01393_ Sub. Laser destroyed. 01397_ BT-2ZC(R) knocked back. Map ----- +----------------------------------------------------+ | ????????????????????????????????????????????## " | | ?????????????????????????????????????????????## " | | ??????????????????????????????????????????????# | | ??????????????????????????????????????????????# " | | ??????????????????????????????????????????????## " | | ??????????????????????????????????????????????## " | | ??????????????????????????????????????????????# | | ??????????????????????????????????????????????## | | ??????????????????????????????????????????????# | | ??????????????????????????????????????????????## | | ????????????????????#?????????????????????????## | | ????????????????????# ??????????????????????### | | ????????????????????# ?????????????????##### | | ????????????????????# #????###????###?## | | ???????????????????## #???# #?#### ### | | ??????????????# ## #### ### ## # | | ??????????????# # | | ??????????????# ## | | ????????????????????## ## # # ## | | ????????????????????????# ######### # | | ????????????????????????## " #????## | | ????????????????????????# ##????# ### | | ????????????????????????# #????# #?## | | ???????????????? ??????# ###??# # # #??#### | | ?????????????? ? "???#[ "##### ### #????? | | ????????????? ""##@ % """ # ? #????? | | ????????????? ""% """## ##????? | | ????????????? " R%% """### ##?????? | | ??????????????# ""% """##?## #??????? | | ??????????????## "" ""##???# ???????? | | ???????????????## " "##????# ???????? | | ????????????????# ####?????# ???????? | | ??????????????? #???????? ### ???????? | | ?????????????? ## #???????? #???#???????? | | ?????????????? #?#######???????? #????????????? | | ???????????????###???????????????????????????????? | | ?????????????????????????????????????????????????? | | ?????????????????????????????????????????????????? | | ?????????????????????????????????????????????????? | | ?????????????????????????????????????????????????? | | ?????????????????????????????????????????????????? | | ?????????????????????????????????????????????????? | | ?????????????????????????????????????????????????? | | ?????????????????????????????????????????????????? | | ?????????????????????????????????????????????????? | | ?????????????????????????????????????????????????? | | ?????????????????????????????????????????????????? | | ?????????????????????????????????????????????????? | | ?????????????????????????????????????????????????? | | ?????????????????????????????????????????????????? | +----------------------------------------------------+ Best States ------------- Heat Dissipation 25 Energy Generation 10 Energy Capacity 125 Matter Stores 300 Matter Capacity 300 Sight Range 16 Terrain Scan Density 10 Armor Coverage 150 Evasion (%) 40 Recoil Reduction 2 Item Schematics ----------------- None Robot Schematics ------------------ None Fabricated ------------ Nothing Repaired ---------- Nothing Studied --------- None Alien Tech Used ----------------- None Achievements -------------- You Again Challenges ------------ None Game ------ Seed OpticalSlugSabre Manual? 0 Play Time 00:07:32 Cumulative 507.1 hours Start 2025.11.11 @ 18:48:24 End 2025.11.11 @ 18:54:28 Sessions 1 Manual Loads 0 Difficulty Rogue Special Mode None Game No. 224 Rogue 131 Adventurer 41 Explorer 52 Win Type - Total 57 Types 27/6/9/1/1/2/8/1/1/1 Lore% 95 Gallery% 91 Achievement% 53 Wizard Run 0 Options --------- Layout 2 ASCII 0 Keyboard 0 Movement Mouse Keybinds 1 Fullscreen 1 Font 32/Tamsyn Map View 50x44 Zoom Use 0% Tactical HUD 1 Map Filters NONE Filters NONE Steam 1 RUN: e5e1688c-99c8-401c-973a-72339d29b6e3